bitfinex/quotes_SOLUSD_20230101
["timestamp","ask_amount","ask_price","bid_price","bid_amount"]
[1672617052274,30.0,9.9799,9.973,20.0]
[1672617052494,30.0,9.9797,9.973,20.0]
[1672617052812,30.0,9.9795,9.973,20.0]
[1672617053016,30.0,9.9793,9.973,20.0]
[1672617053361,30.0,9.9791,9.973,20.0]
[1672617053534,30.0,9.9789,9.973,20.0]
[1672617053864,75.27,9.9788,9.972,20.0]
[1672617054275,75.27,9.979,9.972,20.0]
[1672617055131,75.27,9.9794,9.972,20.0]
[1672617055743,30.0,9.9793,9.972,20.0]
[1672617055957,75.27,9.9792,9.972,20.0]
[1672617056784,75.27,9.9794,9.972,20.0]
[1672617057012,30.0,9.9793,9.972,20.0]
[1672617057219,30.0,9.9791,9.972,20.0]
[1672617057435,75.27,9.979,9.972,20.0]
[1672617057648,30.0,9.9789,9.972,20.0]
[1672617057859,75.27,9.9788,9.972,20.0]
[1672617058472,30.0,9.9793,9.972,20.0]
[1672617058691,75.27,9.9792,9.972,20.0]
[1672617059025,30.0,9.9791,9.972,20.0]
[1672617059228,30.0,9.9789,9.972,20.0]
[1672617059445,30.0,9.9787,9.972,20.0]
[1672617061009,75.27,9.9788,9.972,20.0]
[1672617061431,75.27,9.979,9.972,20.0]
[1672617061864,75.27,9.9792,9.972,20.0]
[1672617062060,30.0,9.9791,9.972,20.0]
[1672617062271,75.27,9.979,9.972,20.0]
[1672617062699,75.27,9.9798,9.972,20.0]
[1672617063217,75.27,9.9799,9.972,20.0]
[1672617065109,30.0,9.9798,9.972,20.0]
[1672617065329,75.27,9.9797,9.972,20.0]
[1672617065648,75.27,9.9799,9.972,20.0]
[1672617066187,75.27,9.9799,9.9721,30.0]
[1672617066387,75.27,9.9799,9.9722,20.0]
[1672617067545,30.0,9.9798,9.9722,20.0]
[1672617067758,30.0,9.9796,9.972,20.0]
[1672617067945,30.0,9.9794,9.972,20.0]
[1672617068157,30.0,9.9792,9.972,20.0]
[1672617068364,75.27,9.9791,9.972,20.0]
[1672617068577,75.27,9.9793,9.972,20.0]
[1672617068996,30.0,9.9794,9.972,20.0]
[1672617069206,75.27,9.9793,9.972,20.0]
[1672617069440,30.0,9.9792,9.972,20.0]
[1672617069627,75.27,9.9791,9.972,20.0]
[1672617070506,75.27,9.9795,9.972,20.0]
[1672617071332,30.0,9.9796,9.972,20.0]
[1672617071542,75.27,9.9795,9.972,20.0]
[1672617071747,75.27,9.9797,9.9721,15.80730786]
[1672617072266,75.27,9.9797,9.9722,20.0]
[1672617075114,75.26,9.9804,9.9722,20.0]
[1672617076286,75.26,9.9804,9.9722,35.80730786]
[1672617077466,30.0,9.9803,9.9722,35.80730786]
[1672617077658,75.26,9.9802,9.9722,35.80730786]
[1672617078377,75.26,9.9804,9.9722,35.80730786]
[1672617078792,75.26,9.9804,9.9723,30.0]
[1672617079003,75.26,9.9804,9.9724,20.0]
[1672617079320,75.26,9.9804,9.9724,35.80730786]
[1672617079847,75.26,9.9804,9.9725,30.0]
[1672617080052,30.0,9.9805,9.9726,20.0]
[1672617080271,75.26,9.9804,9.9724,35.80730786]
[1672617080471,30.0,9.9803,9.9724,35.80730786]
[1672617080680,30.0,9.9801,9.9724,35.80730786]
[1672617081002,30.0,9.9799,9.9724,35.80730786]
[1672617081219,75.27,9.9798,9.9724,35.80730786]
[1672617082271,30.0,9.9799,9.9724,35.80730786]
[1672617082466,30.0,9.9797,9.9724,35.80730786]
[1672617082802,30.0,9.9795,9.9724,20.0]
[1672617083003,30.0,9.9793,9.972,20.0]
[1672617083218,75.27,9.9792,9.972,20.0]
[1672617083409,30.0,9.9791,9.972,20.0]
[1672617083620,75.27,9.979,9.972,20.0]
[1672617084263,30.0,9.9789,9.972,20.0]
[1672617084474,75.27,9.9788,9.972,20.0]
[1672617085417,75.27,9.979,9.972,20.0]
[1672617086358,75.27,9.979,9.9721,15.80730786]
[1672617086566,75.27,9.9794,9.972,20.0]
[1672617086773,30.0,9.9793,9.972,20.0]
[1672617086982,75.27,9.9792,9.972,20.0]
[1672617087527,75.27,9.9796,9.9721,15.80730786]
[1672617087931,75.27,9.9796,9.9722,20.0]
[1672617088155,75.27,9.98,9.9722,20.0]
[1672617088790,30.0,9.9801,9.9722,20.0]
[1672617088995,53.1571,9.9862,9.9722,20.0]
[1672617088996,75.27,9.98,9.9722,20.0]
[1672617089204,75.23,9.9845,9.9723,45.80730786]
[1672617089414,23.1571,9.9862,9.9725,30.0]
[1672617089415,24.2615,9.9834,9.9725,30.0]
[1672617089736,24.2615,9.9834,9.9727,30.0]
[1672617089924,99.5015,9.9833,9.9729,30.0]
[1672617090140,99.5015,9.9833,9.973,85.65]
[1672617090349,99.5015,9.9833,9.9731,30.0]
[1672617090573,99.5015,9.9833,9.9733,30.0]
[1672617090889,99.5015,9.9833,9.9735,30.0]
[1672617091095,99.5015,9.9833,9.9737,30.0]
[1672617091311,99.5015,9.9833,9.9738,72.36]
[1672617091515,99.5015,9.9833,9.9739,30.0]
[1672617091730,99.5015,9.9833,9.9741,30.0]
[1672617092048,99.5015,9.9833,9.9743,30.0]
[1672617092361,99.5015,9.9833,9.9744,75.31]
[1672617092574,99.5015,9.9833,9.9744,91.11730786]
[1672617092766,99.5015,9.9833,9.9746,30.0]
[1672617093199,99.5015,9.9833,9.9747,15.80730786]
[1672617093612,99.5015,9.9833,9.9748,30.0]
[1672617094034,99.5015,9.9833,9.9749,15.80730786]
[1672617096034,24.4316,9.9832,9.9749,15.80730786]
[1672617096244,75.24,9.9831,9.9749,15.80730786]
[1672617097529,24.4316,9.983,9.9749,15.80730786]
[1672617097724,75.24,9.9829,9.9749,15.80730786]
[1672617099718,192.3056,9.9819,9.9749,15.80730786]
[1672617102871,117.0556,9.9819,9.9749,15.80730786]
[1672617103713,75.25,9.9818,9.9749,15.80730786]
[1672617104464,75.25,9.9818,9.9743,30.0]
[1672617104678,75.25,9.9818,9.9744,15.80730786]
[1672617105603,30.0,9.9818,9.9744,15.80730786]
[1672617105921,30.0,9.9816,9.9744,15.80730786]
[1672617106148,30.0,9.9814,9.9737,67.87179622]
[1672617106338,30.0,9.9812,9.9737,15.80730786]
[1672617106546,75.26,9.9811,9.9737,15.80730786]
[1672617106759,30.0,9.981,9.9737,15.80730786]
[1672617106973,30.0,9.9808,9.9737,15.80730786]
[1672617107187,30.0,9.9806,9.9737,15.80730786]
[1672617107402,75.26,9.9805,9.9737,15.80730786]
[1672617107930,30.0,9.9804,9.9737,15.80730786]
[1672617108129,75.26,9.9803,9.9737,15.80730786]
[1672617108551,75.26,9.9807,9.9737,15.80730786]
[1672617109705,30.0,9.9806,9.9737,15.80730786]
[1672617109915,30.0,9.9804,9.9727,24.3127]
[1672617110138,30.0,9.9804,9.9728,20.0]
[1672617110139,30.0,9.9802,9.9728,20.0]
[1672617110459,30.0,9.98,9.9728,20.0]
[1672617110777,30.0,9.9798,9.9728,20.0]
[1672617111088,75.27,9.9797,9.9728,20.0]
[1672617111282,30.0,9.9796,9.9728,20.0]
[1672617111492,75.27,9.9795,9.9728,20.0]
[1672617111718,30.0,9.9794,9.9728,20.0]
[1672617112036,30.0,9.9792,9.9728,20.0]
[1672617112246,30.0,9.979,9.9728,20.0]
[1672617112437,30.0,9.9788,9.9728,20.0]
[1672617112642,30.0,9.9786,9.9728,20.0]
[1672617112978,30.0,9.9784,9.9728,20.0]
[1672617113297,75.28,9.9783,9.9728,20.0]
[1672617113501,30.0,9.9782,9.9728,20.0]
[1672617113715,30.0,9.978,9.972,20.0]
[1672617113918,30.0,9.9778,9.972,20.0]
[1672617114127,30.0,9.9778,9.9688,23.3919]
[1672617114128,75.28,9.9777,9.9688,23.3919]
[1672617114333,0.11698618,9.9688,9.9633,122.363]
[1672617114544,0.11698618,9.9688,9.966,62.70646288]
[1672617115079,0.11698618,9.9688,9.9661,15.80730786]
[1672617115289,0.11698618,9.9688,9.9662,30.0]
[1672617115691,0.11698618,9.9688,9.9663,15.80730786]
[1672617119163,0.11698618,9.9688,9.9664,30.0]
[1672617119369,0.11698618,9.9688,9.9664,14.479165]
[1672617119370,0.04461959,9.9688,9.9664,14.479165]
[1672617119581,0.04461959,9.9688,9.9665,15.80730786]
[1672617122760,0.04461959,9.9688,9.9667,30.0]
[1672617123177,0.04461959,9.9688,9.9668,15.80730786]
[1672617125585,0.04461959,9.9688,9.9669,30.0]
[1672617126639,0.04461959,9.9688,9.9668,15.80730786]
[1672617132226,0.04461959,9.9688,9.9659,30.0]
[1672617132648,0.04461959,9.9688,9.9651,75.38]
[1672617132857,0.04461959,9.9688,9.9654,15.80730786]
[1672617133065,0.04461959,9.9688,9.9648,30.0]
[1672617133689,0.04461959,9.9688,9.9649,15.80730786]
[1672617133922,0.04461959,9.9688,9.9651,30.0]
[1672617134332,0.04461959,9.9688,9.9651,45.72338171]
[1672617134664,22.9212,9.9727,9.9652,30.0]
[1672617136016,22.9212,9.9727,9.9652,105.38]
[1672617137484,24.4452,9.9726,9.9652,105.38]
[1672617138342,24.4452,9.9726,9.9652,121.18730786]
[1672617141602,23.4045,9.9725,9.9652,121.18730786]
[1672617144637,23.4045,9.9725,9.9653,15.80730786]
[1672617144848,23.4045,9.9725,9.9654,41.41]
[1672617145062,23.4045,9.9725,9.9653,15.80730786]
[1672617145397,23.4045,9.9725,9.9654,15.80730786]
[1672617145717,24.5463,9.9724,9.9649,41.41]
[1672617145925,24.5463,9.9724,9.9649,30.0]
[1672617146117,24.5463,9.9724,9.9649,72.73]
[1672617146756,24.5463,9.9724,9.9649,42.73]
[1672617149060,24.5463,9.9724,9.965,30.0]
[1672617149270,24.5463,9.9724,9.9651,38.14]
[1672617151788,24.5463,9.9724,9.9648,60.09129491]
[1672617151789,24.5463,9.9724,9.9649,38.85]
[1672617152214,24.5463,9.9724,9.965,15.80730786]
[1672617152424,24.5463,9.9724,9.9651,38.94]
[1672617152634,24.5463,9.9724,9.9649,40.44]
[1672617153699,24.5463,9.9724,9.965,30.0]
[1672617153893,24.5463,9.9724,9.9651,40.44]
[1672617154101,24.5463,9.9724,9.9652,30.0]
[1672617154308,24.5463,9.9724,9.9653,41.3]
[1672617154643,24.5463,9.9724,9.9654,30.0]
[1672617154834,30.0,9.9723,9.9639,15.80730786]
[1672617155047,30.0,9.9723,9.964,41.79]
[1672617155259,30.0,9.9723,9.9642,15.80730786]
[1672617155468,30.0,9.9721,9.9648,43.14]
[1672617155678,30.0,9.9719,9.9648,43.14]
[1672617155895,30.0,9.9719,9.9642,15.80730786]
[1672617156323,75.32,9.9723,9.9648,30.0]
[1672617156949,75.32,9.9723,9.9647,39.19920786]
[1672617157269,30.0,9.9722,9.9647,39.19920786]
[1672617157482,30.0,9.9722,9.9647,23.3919]
[1672617157483,5.73,9.97,9.9647,23.3919]
[1672617157697,5.73,9.97,9.9636,23.5811]
[1672617157889,5.73,9.97,9.9565,30.0]
[1672617157890,30.0,9.9698,9.9565,30.0]
[1672617158093,30.0,9.9696,9.9607,20.0]
[1672617158310,75.34,9.9695,9.9608,35.65]
[1672617158637,30.0,9.9694,9.9608,35.65]
[1672617158841,75.35,9.9693,9.9609,20.0]
[1672617159065,30.0,9.9692,9.9609,20.0]
[1672617159272,75.35,9.9691,9.9571,60.45]
[1672617159489,30.0,9.969,9.9572,30.0]
[1672617159789,30.0,9.9688,9.9574,30.0]
[1672617160014,30.0,9.9686,9.9576,30.0]
[1672617160201,30.0,9.9684,9.9578,30.0]
[1672617160411,75.35,9.9683,9.9579,62.25]
[1672617160624,30.0,9.9682,9.958,30.0]
[1672617160846,30.0,9.9682,9.9581,62.91]
[1672617161673,30.0,9.9682,9.9582,30.0]
[1672617161883,30.0,9.9682,9.9584,30.0]
[1672617162101,30.0,9.9682,9.9585,57.45]
[1672617162304,30.0,9.9684,9.9586,30.0]
[1672617162520,30.0,9.9684,9.9588,30.0]
[1672617162725,30.0,9.9684,9.9589,38.22]
[1672617162936,30.0,9.9684,9.959,30.0]
[1672617163151,30.0,9.9684,9.9591,38.73]
[1672617163362,30.0,9.9682,9.9592,20.0]
[1672617163567,30.0,9.9682,9.9593,38.92]
[1672617163808,30.0,9.9682,9.9594,20.0]
[1672617163986,75.35,9.9685,9.9595,39.31]
[1672617164194,75.34,9.9699,9.96,5.73]
[1672617164410,24.4287,9.9722,9.9602,30.0]
[1672617164620,24.4287,9.9722,9.9604,30.0]
[1672617164835,24.4287,9.9722,9.9605,64.61]
[1672617165156,24.4287,9.9722,9.9606,45.80730786]
[1672617165361,23.4404,9.9721,9.9607,66.08]
[1672617165570,23.4404,9.972,9.9608,30.0]
[1672617165786,23.4404,9.972,9.961,30.0]
[1672617166003,23.4404,9.972,9.9611,48.39]
[1672617166315,23.4404,9.972,9.9613,30.0]
[1672617166524,23.4404,9.972,9.9615,30.0]
[1672617166719,23.4404,9.972,9.9616,71.04]
[1672617167053,23.4404,9.972,9.9617,30.0]
[1672617167243,23.4404,9.972,9.9619,30.0]
[1672617167450,23.4404,9.972,9.9621,30.0]
[1672617167669,23.4404,9.972,9.9623,30.0]
[1672617167887,23.4404,9.9719,9.9624,73.88]
[1672617168097,23.4404,9.9719,9.9625,30.0]
[1672617168307,23.4404,9.9719,9.9627,30.0]
[1672617168528,30.0,9.9718,9.9629,30.0]
[1672617168849,30.0,9.9718,9.9631,30.0]
[1672617169052,23.4404,9.9719,9.9632,54.72]
[1672617169254,23.4404,9.9719,9.9633,30.0]
[1672617169467,23.4404,9.9719,9.9634,55.81]
[1672617169681,23.4404,9.9719,9.9634,71.61730786]
[1672617169988,24.5778,9.9718,9.9635,15.80730786]
[1672617170190,30.0,9.9717,9.9636,54.43]
[1672617170612,30.0,9.9717,9.9637,15.80730786]
[1672617170826,30.0,9.9717,9.9638,55.09]
[1672617171046,24.5778,9.9718,9.9639,30.0]
[1672617171258,24.5778,9.9718,9.9641,30.0]
[1672617171578,24.5778,9.9718,9.9642,55.69]
[1672617171775,23.1853,9.9717,9.9642,15.80730786]
[1672617171989,23.1853,9.9717,9.9643,70.80730786]
[1672617172402,30.0,9.9716,9.9644,15.80730786]
[1672617172732,30.0,9.9716,9.9645,54.76]
[1672617173055,30.0,9.9716,9.9629,30.0]
[1672617173247,23.1853,9.9717,9.963,73.93]
[1672617173574,23.1853,9.9717,9.9631,30.0]
[1672617173760,23.1853,9.9717,9.9633,30.0]
[1672617173976,23.1853,9.9717,9.9635,30.0]
[1672617174198,23.1853,9.9717,9.9637,30.0]
[1672617174395,23.1853,9.9717,9.9638,53.25]
[1672617174606,23.1853,9.9717,9.9639,30.0]
[1672617174818,30.0,9.9716,9.964,52.42]
[1672617175025,30.0,9.9716,9.9638,52.42]
[1672617175256,23.1853,9.9717,9.9638,52.42]
[1672617175670,24.7915,9.9716,9.9638,52.42]
[1672617176286,24.7915,9.9716,9.9639,30.0]
[1672617176502,24.7915,9.9716,9.964,48.76]
[1672617176730,24.7915,9.9716,9.9641,30.0]
[1672617176921,24.7915,9.9716,9.9643,30.0]
[1672617177777,24.7915,9.9716,9.9642,48.22]
[1672617177990,24.7915,9.9716,9.964,47.74]
[1672617178728,24.7915,9.9716,9.9641,15.80730786]
[1672617178922,24.7915,9.9716,9.9642,46.32]
[1672617179133,24.7915,9.9716,9.9643,30.0]
[1672617179453,24.7915,9.9716,9.9645,30.0]
[1672617179675,24.7915,9.9716,9.9647,30.0]
[1672617179889,24.7915,9.9716,9.9649,30.0]
[1672617180105,24.7915,9.9716,9.965,47.55]
[1672617180416,24.7915,9.9716,9.9651,30.0]
[1672617180619,24.7915,9.9716,9.9652,48.58]
[1672617180812,24.7915,9.9716,9.9653,30.0]
[1672617181024,24.7915,9.9716,9.9655,30.0]
[1672617181238,24.7915,9.9716,9.9656,49.88]
[1672617181459,24.7915,9.9716,9.9657,30.0]
[1672617181773,24.7915,9.9716,9.9659,30.0]
[1672617181986,24.7915,9.9716,9.966,50.66]
[1672617182189,24.7915,9.9716,9.9661,30.0]
[1672617182401,24.7915,9.9716,9.9663,30.0]
[1672617183023,24.7915,9.9716,9.9665,30.0]
[1672617183440,24.7915,9.9716,9.9666,10.72105461]
[1672617183651,24.7915,9.9716,9.9667,30.0]
[1672617184081,24.7915,9.9716,9.9669,30.0]
[1672617184498,24.7915,9.9716,9.9669,45.80730786]
[1672617197336,24.7915,9.9716,9.967,56.65]
[1672617197549,24.7915,9.9716,9.9671,30.0]
[1672617200274,24.7915,9.9716,9.9672,15.80730786]
[1672617206043,24.7915,9.9716,9.9669,30.0]
[1672617207415,24.7915,9.9716,9.9669,27.5]
[1672617209327,24.7915,9.9716,9.9669,25.0]
[1672617210788,24.7915,9.9716,9.967,15.80730786]
[1672617238897,24.7915,9.9716,9.9671,30.0]
[1672617239219,24.7915,9.9716,9.9672,15.80730786]
[1672617239435,24.7915,9.9716,9.9673,30.0]
[1672617239840,24.7915,9.9716,9.9674,15.80730786]
[1672617262731,24.7915,9.9716,9.9676,30.0]
[1672617263060,24.7915,9.9716,9.9677,15.80730786]
[1672617263253,24.7915,9.9716,9.9678,30.0]
[1672617263465,75.3,9.9754,9.9678,107.79032814]
[1672617263677,133.7726,9.9816,9.9734,299.6]
[1672617263901,22.5367,9.9879,9.9736,299.6]
[1672617264129,110.3076,9.9874,9.9738,299.6]
[1672617264315,185.5176,9.9873,9.974,299.6]
[1672617264518,185.5176,9.9873,9.9741,374.91]
[1672617264732,185.5176,9.9873,9.9742,30.0]
[1672617264938,110.3076,9.9872,9.9743,75.31]
[1672617265197,75.21,9.9871,9.9743,295.47978851]
[1672617265364,75.21,9.9871,9.9744,136.77693243]
[1672617265578,110.3076,9.987,9.9746,30.0]
[1672617265899,75.21,9.9869,9.9748,30.0]
[1672617266112,185.5176,9.9869,9.9749,75.3]
[1672617266417,185.5176,9.9869,9.975,30.0]
[1672617266638,116.5091,9.9868,9.9751,75.3]
[1672617266843,75.21,9.9867,9.9752,30.0]
[1672617267040,75.21,9.9867,9.9754,30.0]
[1672617267252,116.5091,9.9866,9.9756,30.0]
[1672617267468,75.22,9.9865,9.9757,75.3]
[1672617267672,75.22,9.9865,9.9758,30.0]
[1672617267887,116.5091,9.9864,9.9759,75.3]
[1672617268091,75.22,9.9863,9.976,30.0]
[1672617268297,75.22,9.9863,9.9762,30.0]
[1672617268505,116.5091,9.9862,9.9764,30.0]
[1672617268718,75.22,9.9861,9.9765,75.29]
[1672617268950,75.22,9.9861,9.9766,30.0]
[1672617269169,116.5091,9.986,9.9767,75.29]
[1672617269382,75.22,9.9859,9.9768,30.0]
[1672617269696,75.22,9.9859,9.977,30.0]
[1672617270011,75.22,9.9859,9.9772,30.0]
[1672617270012,113.2478,9.9858,9.9772,30.0]
[1672617270218,75.22,9.9857,9.9772,30.0]
[1672617270412,75.22,9.9857,9.9774,30.0]
[1672617270846,75.22,9.9857,9.9776,30.0]
[1672617271263,75.22,9.9857,9.9778,30.0]
[1672617271689,75.22,9.9857,9.978,30.0]
[1672617272225,75.22,9.9857,9.9781,168.88609371]
[1672617272747,75.22,9.9857,9.9782,112.59931596]
[1672617272935,75.22,9.9857,9.9782,128.40662382]
[1672617273143,75.22,9.9857,9.9783,82.59931596]
[1672617273357,75.22,9.9857,9.9784,30.0]
[1672617273781,75.22,9.9857,9.9784,112.59931596]
[1672617274317,75.22,9.9857,9.9786,30.0]
[1672617274636,113.2478,9.9858,9.9786,30.0]
[1672617274826,113.2478,9.9858,9.9787,82.59931596]
[1672617275042,113.2478,9.9858,9.9788,30.0]
[1672617275355,113.2478,9.9858,9.9788,112.59931596]
[1672617275984,113.2478,9.9858,9.9788,82.59931596]
[1672617278522,30.0,9.9857,9.9788,82.59931596]
[1672617278727,30.0,9.9855,9.9788,82.59931596]
[1672617278939,75.22,9.9854,9.9788,82.59931596]
[1672617279261,30.0,9.9853,9.9788,82.59931596]
[1672617279457,75.22,9.9854,9.9788,82.59931596]
[1672617279668,75.22,9.9856,9.9788,82.59931596]
[1672617280223,75.22,9.9857,9.9788,82.59931596]
[1672617280400,30.0,9.9856,9.9749,75.3]
[1672617280603,75.22,9.9855,9.9749,75.3]
[1672617280831,30.0,9.9853,9.9752,109.6526493]
[1672617281042,75.23,9.9852,9.9755,75.3]
[1672617281261,30.0,9.9851,9.9756,109.6526493]
[1672617281456,30.0,9.9849,9.9756,109.6526493]
[1672617281665,30.0,9.9847,9.9756,109.6526493]
[1672617281876,75.23,9.9846,9.9756,109.6526493]
[1672617282084,30.0,9.9845,9.9757,75.3]
[1672617282292,30.0,9.9843,9.9757,75.3]
[1672617282500,75.23,9.9842,9.9758,30.0]
[1672617282735,146.7893,9.9843,9.9759,75.3]
[1672617283342,146.7893,9.9843,9.9758,75.3]
[1672617284007,146.7893,9.9843,9.9758,154.9526493]
[1672617284720,146.7893,9.9843,9.9759,30.0]
[1672617284941,146.7893,9.9843,9.976,75.3]
[1672617285354,30.0,9.9841,9.976,154.9526493]
[1672617286300,116.7893,9.9843,9.976,154.9526493]
[1672617286505,30.0,9.9842,9.976,154.9526493]
[1672617287773,116.7893,9.9843,9.9761,30.0]
[1672617287965,116.7893,9.9843,9.9763,30.0]
[1672617288175,116.7893,9.9843,9.9764,75.29]
[1672617288395,116.7893,9.9843,9.9765,30.0]
[1672617288607,116.7893,9.9843,9.9767,30.0]
[1672617288820,116.7893,9.9843,9.9769,30.0]
[1672617289010,116.7893,9.9843,9.977,75.29]
[1672617289226,116.7893,9.9843,9.9771,30.0]
[1672617289445,116.7893,9.9843,9.9773,30.0]
[1672617289657,116.7893,9.9843,9.9774,75.29]
[1672617290079,116.7893,9.9843,9.9775,30.0]
[1672617290826,116.7893,9.9843,9.9773,30.0]
[1672617291141,116.7893,9.9843,9.9772,75.29]
[1672617291537,116.7893,9.9843,9.9773,30.0]
[1672617293013,116.7893,9.9843,9.9775,30.0]
[1672617293229,116.7893,9.9843,9.9776,75.28]
[1672617296901,116.7893,9.9843,9.9775,105.28]
[1672617298488,116.7893,9.9843,9.9775,75.28]
[1672617299313,116.7893,9.9843,9.9776,125.45995716]
[1672617299733,116.7893,9.9843,9.9778,30.0]
[1672617300159,116.7893,9.9843,9.9779,79.6526493]
[1672617300372,116.7893,9.9843,9.9779,150.13211919]
[1672617300689,116.7893,9.9843,9.978,109.6526493]
[1672617301111,116.7893,9.9843,9.9782,30.0]
[1672617301545,116.7893,9.9843,9.9784,30.0]
[1672617301951,116.7893,9.9843,9.9784,109.6526493]
[1672617302282,116.7893,9.9843,9.9784,79.6526493]
[1672617302489,116.7893,9.9843,9.9785,30.0]
[1672617302823,116.7893,9.9843,9.9787,30.0]
[1672617303227,116.7893,9.9843,9.9789,30.0]
[1672617303622,116.7893,9.9843,9.9791,30.0]
[1672617304042,116.7893,9.9843,9.9791,109.6526493]
[1672617304590,116.7893,9.9843,9.9792,15.80730786]
[1672617304907,116.7893,9.9843,9.9793,30.0]
[1672617305335,116.7893,9.9843,9.9794,15.80730786]
[1672617309754,116.7893,9.9843,9.9795,30.0]
[1672617311230,116.7893,9.9843,9.9796,15.80730786]
[1672617311417,116.7893,9.9843,9.9797,30.0]
[1672617312591,116.7893,9.9843,9.9798,15.80730786]
[1672617314073,116.7893,9.9843,9.9799,30.0]
[1672617316379,116.7893,9.9843,9.98,15.80730786]
[1672617319858,116.7893,9.9843,9.9801,30.0]
[1672617320182,74.41157722,9.9898,9.9801,30.0]
[1672617320183,75.19,9.9897,9.9803,30.0]
[1672617320493,75.18,9.9915,9.9804,314.78296608]
[1672617320815,211.5186,9.9915,9.9805,195.93942705]
[1672617321013,211.5186,9.9915,9.9807,30.0]
[1672617321337,30.0,9.9913,9.9809,30.0]
[1672617321539,75.18,9.9912,9.9811,30.0]
[1672617321749,24.262,9.9912,9.9812,20.0]
[1672617321961,75.18,9.9911,9.9813,30.0]
[1672617322156,75.18,9.9911,9.9815,30.0]
[1672617322368,24.262,9.991,9.9816,20.0]
[1672617322587,75.18,9.9909,9.9817,30.0]
[1672617322807,75.18,9.9909,9.9819,30.0]
[1672617323011,24.262,9.9908,9.982,20.0]
[1672617323211,75.18,9.9907,9.9821,30.0]
[1672617323428,30.0,9.9906,9.9821,45.80730786]
[1672617323634,75.19,9.9905,9.9823,30.0]
[1672617323842,75.19,9.9906,9.9825,30.0]
[1672617324268,75.19,9.9906,9.9827,30.0]
[1672617324581,30.0,9.9905,9.9828,150.13211919]
[1672617324793,75.19,9.9904,9.9828,150.13211919]
[1672617325006,30.0,9.9903,9.9829,150.13211919]
[1672617325211,75.19,9.9902,9.983,30.0]
[1672617325427,75.19,9.9906,9.983,150.13211919]
[1672617325743,75.19,9.9906,9.9831,150.13211919]
[1672617326161,75.19,9.9906,9.9832,150.13211919]
[1672617326588,75.19,9.9906,9.9834,30.0]
[1672617327107,75.19,9.9906,9.9835,150.13211919]
[1672617327539,75.19,9.9906,9.9836,150.13211919]
[1672617327945,75.19,9.9906,9.9837,150.13211919]
[1672617328367,75.19,9.9906,9.9838,150.13211919]
[1672617328782,75.19,9.9906,9.9827,15.80730786]
[1672617328783,75.19,9.9906,9.9839,150.13211919]
[1672617328993,75.19,9.9906,9.984,30.0]
[1672617329212,75.19,9.9906,9.984,180.13211919]
[1672617329422,75.19,9.9906,9.9841,150.13211919]
[1672617329647,75.19,9.9906,9.9842,30.0]
[1672617329944,75.19,9.9906,9.9843,70.47946989]
[1672617330273,75.19,9.9906,9.9844,79.6526493]
[1672617330906,75.19,9.9906,9.9845,30.0]
[1672617331222,75.19,9.9906,9.9846,79.6526493]
[1672617331430,75.19,9.9906,9.9847,30.0]
[1672617331649,23.1909,9.9907,9.9847,100.47946989]
[1672617331843,23.1909,9.9907,9.9848,79.6526493]
[1672617332172,75.19,9.9906,9.9848,150.13211919]
[1672617332487,75.19,9.9906,9.9849,109.6526493]
[1672617332803,75.19,9.9906,9.9851,30.0]
[1672617333327,75.19,9.9906,9.9851,109.6526493]
[1672617333939,75.19,9.9906,9.9851,79.6526493]
[1672617334255,23.1909,9.9907,9.9852,30.0]
[1672617335944,23.1909,9.9907,9.9851,79.6526493]
[1672617336987,23.1909,9.9907,9.9852,15.80730786]
[1672617337197,23.1909,9.9907,9.9851,79.6526493]
[1672617337529,23.1909,9.9907,9.9852,30.0]
[1672617337842,23.1909,9.9907,9.9851,79.6526493]
[1672617340026,23.1909,9.9907,9.9852,30.0]
[1672617340476,23.1909,9.9907,9.9853,79.6526493]
[1672617342061,23.1909,9.9907,9.9854,30.0]
[1672617342488,23.1909,9.9907,9.9855,79.6526493]
[1672617342815,23.1909,9.9907,9.9857,30.0]
[1672617343222,23.1909,9.9907,9.9857,79.6526493]
[1672617343539,23.1909,9.9907,9.9858,30.0]
[1672617343948,23.1909,9.9907,9.9859,79.6526493]
[1672617344279,23.1909,9.9907,9.986,126.21946989]